[Event "Early-Titled-Tuesday-Blitz-February-13-2024"]
[Site "Chess.com"]
[Date "2024.02.13"]
[Round "6"]
[White "Quattroporte300"]
[Black "temiksmozg"]
[Result "0-1"]
[WhiteElo "2413"]
[BlackElo "2610"]
[TimeControl "180+1"]
[EndTime "9:10:53 PST"]
[Termination "temiksmozg won by checkmate"]

1. e4 {[%clk 0:02:57.3]} 1... c5 {[%clk 0:02:59.3]} 2. Nf3 {[%clk 0:02:55.5]}
2... Nc6 {[%clk 0:02:58.4]} 3. d4 {[%clk 0:02:53.9]} 3... cxd4 {[%clk
0:02:59.3]} 4. Nxd4 {[%clk 0:02:54.3]} 4... Nf6 {[%clk 0:02:59.6]} 5. Nc3 {[%clk
0:02:53.1]} 5... e5 {[%clk 0:03:00.1]} 6. Ndb5 {[%clk 0:02:52.3]} 6... d6 {[%clk
0:03:00.7]} 7. Nd5 {[%clk 0:02:52.7]} 7... Nxd5 {[%clk 0:03:00]} 8. exd5 {[%clk
0:02:53.6]} 8... Nb8 {[%clk 0:03:00.1]} 9. a4 {[%clk 0:02:53.1]} 9... Be7 {[%clk
0:03:00.3]} 10. Be2 {[%clk 0:02:50.6]} 10... O-O {[%clk 0:02:59.6]} 11. O-O
{[%clk 0:02:50.8]} 11... f5 {[%clk 0:02:48.5]} 12. f4 {[%clk 0:02:50.3]} 12...
Nd7 {[%clk 0:02:45.3]} 13. a5 {[%clk 0:02:41.6]} 13... a6 {[%clk 0:02:44.7]} 14.
Nc3 {[%clk 0:02:40.7]} 14... Bf6 {[%clk 0:02:39.7]} 15. Be3 {[%clk 0:02:39.8]}
15... Qe8 {[%clk 0:02:25.7]} 16. Qd2 {[%clk 0:02:37.2]} 16... exf4 {[%clk
0:02:16.9]} 17. Bxf4 {[%clk 0:02:36]} 17... Ne5 {[%clk 0:02:16.8]} 18. Rae1
{[%clk 0:02:30.8]} 18... Bd7 {[%clk 0:02:16.3]} 19. Bd3 {[%clk 0:02:20]} 19...
h6 {[%clk 0:02:12.4]} 20. Be3 {[%clk 0:02:07.3]} 20... Qh5 {[%clk 0:01:46.3]}
21. Be2 {[%clk 0:01:56.1]} 21... Qf7 {[%clk 0:01:33.6]} 22. Bd4 {[%clk
0:01:50.8]} 22... g5 {[%clk 0:01:29.3]} 23. Kh1 {[%clk 0:01:46.8]} 23... Rae8
{[%clk 0:01:28.6]} 24. Qd1 {[%clk 0:01:36.8]} 24... Qg7 {[%clk 0:01:24.6]} 25.
Bh5 {[%clk 0:01:34.2]} 25... Re7 {[%clk 0:01:24.2]} 26. Rf2 {[%clk 0:01:13.9]}
26... g4 {[%clk 0:01:23.3]} 27. Ref1 {[%clk 0:01:01.2]} 27... Qg5 {[%clk
0:01:21.5]} 28. Bxe5 {[%clk 0:00:56.6]} 28... Bxe5 {[%clk 0:01:20.7]} 29. Bxg4
{[%clk 0:00:56.3]} 29... Qh4 {[%clk 0:00:54.8]} 30. Bh3 {[%clk 0:00:55.7]} 30...
Rg7 {[%clk 0:00:54.3]} 31. Qd3 {[%clk 0:00:43.3]} 31... Rg5 {[%clk 0:00:46.2]}
32. Rf3 {[%clk 0:00:37.7]} 32... Kh8 {[%clk 0:00:36.3]} 33. Qe2 {[%clk 0:00:34]}
33... Rfg8 {[%clk 0:00:34.4]} 34. Qf2 {[%clk 0:00:30.2]} 34... Rxg2 {[%clk
0:00:30.2]} 35. Qxg2 {[%clk 0:00:21.6]} 35... Rxg2 {[%clk 0:00:29.3]} 36. Kxg2
{[%clk 0:00:22.3]} 36... h5 {[%clk 0:00:23.5]} 37. Kh1 {[%clk 0:00:21.9]} 37...
Kg8 {[%clk 0:00:09.8]} 38. Ne2 {[%clk 0:00:19.5]} 38... Kf8 {[%clk 0:00:09.2]}
39. R1f2 {[%clk 0:00:17.2]} 39... Ke7 {[%clk 0:00:07.3]} 40. Bxf5 {[%clk
0:00:15.3]} 40... Bb5 {[%clk 0:00:07.1]} 41. Bd3 {[%clk 0:00:09.7]} 41... Bxd3
{[%clk 0:00:06.8]} 42. cxd3 {[%clk 0:00:10.2]} 42... Kd8 {[%clk 0:00:05.6]} 43.
Ng3 {[%clk 0:00:09]} 43... Kc7 {[%clk 0:00:04.7]} 44. Kg2 {[%clk 0:00:09.1]}
44... Kb8 {[%clk 0:00:04.8]} 45. Rf8+ {[%clk 0:00:08.2]} 45... Ka7 {[%clk
0:00:05]} 46. R8f7 {[%clk 0:00:08.4]} 46... Qg4 {[%clk 0:00:04.3]} 47. Kf1
{[%clk 0:00:05]} 47... h4 {[%clk 0:00:04.6]} 48. Ne2 {[%clk 0:00:04.9]} 48... h3
{[%clk 0:00:04.7]} 49. R7f3 {[%clk 0:00:03.5]} 49... Bxb2 {[%clk 0:00:04.7]} 50.
Ng3 {[%clk 0:00:02.4]} 50... Be5 {[%clk 0:00:03.8]} 51. Rf7 {[%clk 0:00:02.3]}
51... Qa4 {[%clk 0:00:03.9]} 52. Ne2 {[%clk 0:00:02]} 52... Qd1# {[%clk
0:00:03.9]} 0-1

[Event "Early-Titled-Tuesday-Blitz-February-13-2024"]
[Site "Chess.com"]
[Date "2024.02.13"]
[Round "6"]
[White "mr_gustavo"]
[Black "Sam_ChessMood"]
[Result "0-1"]
[WhiteElo "2741"]
[BlackElo "2931"]
[TimeControl "180+1"]
[EndTime "9:10:56 PST"]
[Termination "Sam_ChessMood won on time"]

1. c4 {[%clk 0:03:00.9]} 1... e5 {[%clk 0:02:59.8]} 2. Nc3 {[%clk 0:02:54.8]}
2... Bb4 {[%clk 0:02:59.5]} 3. Nd5 {[%clk 0:02:46.8]} 3... Be7 {[%clk
0:02:59.4]} 4. Nf3 {[%clk 0:02:45.1]} 4... d6 {[%clk 0:02:59.2]} 5. d4 {[%clk
0:02:44.7]} 5... Nf6 {[%clk 0:02:59.5]} 6. Nxe7 {[%clk 0:02:42.1]} 6... Qxe7
{[%clk 0:02:59.2]} 7. e3 {[%clk 0:02:40.9]} 7... O-O {[%clk 0:02:56.3]} 8. Be2
{[%clk 0:02:41.3]} 8... c5 {[%clk 0:02:53.5]} 9. O-O {[%clk 0:02:40.4]} 9... e4
{[%clk 0:02:52.1]} 10. Ne1 {[%clk 0:02:38.6]} 10... Nc6 {[%clk 0:02:39.9]} 11.
Nc2 {[%clk 0:02:39.2]} 11... Bf5 {[%clk 0:02:35]} 12. b3 {[%clk 0:02:39]} 12...
b6 {[%clk 0:02:29.6]} 13. Bb2 {[%clk 0:02:39]} 13... Rfe8 {[%clk 0:02:20.6]} 14.
Qd2 {[%clk 0:02:39.1]} 14... Rad8 {[%clk 0:02:16.2]} 15. Rfe1 {[%clk 0:02:35.3]}
15... h5 {[%clk 0:02:15.6]} 16. a3 {[%clk 0:02:34.3]} 16... d5 {[%clk
0:02:05.1]} 17. cxd5 {[%clk 0:02:34.4]} 17... Nxd5 {[%clk 0:01:59.9]} 18. Bb5
{[%clk 0:02:34.5]} 18... Qe6 {[%clk 0:01:55.2]} 19. Rac1 {[%clk 0:02:33.7]}
19... Qg6 {[%clk 0:01:47.7]} 20. Kh1 {[%clk 0:02:14.1]} 20... h4 {[%clk
0:01:29.8]} 21. h3 {[%clk 0:02:14]} 21... Re6 {[%clk 0:01:05.4]} 22. b4 {[%clk
0:02:08.9]} 22... Bxh3 {[%clk 0:00:56.5]} 23. gxh3 {[%clk 0:02:06.3]} 23... Qf5
{[%clk 0:00:57.1]} 24. Bf1 {[%clk 0:02:01.6]} 24... Rg6 {[%clk 0:00:57.2]} 25.
Bg2 {[%clk 0:01:50]} 25... Rxg2 {[%clk 0:00:56.7]} 26. Kxg2 {[%clk 0:01:49.2]}
26... Ne5 {[%clk 0:00:55.6]} 27. dxe5 {[%clk 0:01:09.8]} 27... Nf4+ {[%clk
0:00:55.1]} 28. exf4 {[%clk 0:01:10.7]} 28... Rxd2 {[%clk 0:00:55.2]} 29. Bc3
{[%clk 0:01:01.9]} 29... Rxf2+ {[%clk 0:00:46.1]} 30. Kxf2 {[%clk 0:00:57.4]}
30... Qxf4+ {[%clk 0:00:47]} 31. Kg2 {[%clk 0:00:44.8]} 31... Qg3+ {[%clk
0:00:46.3]} 32. Kh1 {[%clk 0:00:41.3]} 32... Qxh3+ {[%clk 0:00:46.7]} 33. Kg1
{[%clk 0:00:41.9]} 33... Qg3+ {[%clk 0:00:46.3]} 34. Kh1 {[%clk 0:00:34.9]}
34... Qxc3 {[%clk 0:00:40.1]} 35. e6 {[%clk 0:00:28.5]} 35... Qh3+ {[%clk
0:00:33.9]} 36. Kg1 {[%clk 0:00:28.3]} 36... Qxe6 {[%clk 0:00:34.8]} 37. bxc5
{[%clk 0:00:27.7]} 37... bxc5 {[%clk 0:00:28.9]} 38. Ne3 {[%clk 0:00:27.9]}
38... f5 {[%clk 0:00:25.1]} 39. Rxc5 {[%clk 0:00:22.5]} 39... f4 {[%clk
0:00:25.4]} 40. Nf5 {[%clk 0:00:20.4]} 40... e3 {[%clk 0:00:15.5]} 41. Kh2
{[%clk 0:00:18]} 41... Qa2+ {[%clk 0:00:08.6]} 42. Kh3 {[%clk 0:00:12.6]} 42...
Qf2 {[%clk 0:00:09.1]} 43. Rb1 {[%clk 0:00:06.6]} 43... e2 {[%clk 0:00:08]} 44.
Rc7 {[%clk 0:00:02.6]} 44... Qf1+ {[%clk 0:00:05.9]} 45. Rxf1 {[%clk 0:00:01.5]}
45... exf1=Q+ {[%clk 0:00:06.8]} 46. Kxh4 {[%clk 0:00:02.4]} 46... f3 {[%clk
0:00:06.2]} 47. Rxg7+ {[%clk 0:00:01.9]} 47... Kf8 {[%clk 0:00:06.6]} 48. Rc7
{[%clk 0:00:01.8]} 48... f2 {[%clk 0:00:04.9]} 49. Kg5 {[%clk 0:00:02]} 49...
Qd3 {[%clk 0:00:03.6]} 0-1

[Event "Early-Titled-Tuesday-Blitz-February-13-2024"]
[Site "Chess.com"]
[Date "2024.02.13"]
[Round "6"]
[White "Iuckyducky"]
[Black "LangesNasenhaar"]
[Result "1-0"]
[WhiteElo "2289"]
[BlackElo "2444"]
[TimeControl "180+1"]
[EndTime "9:10:57 PST"]
[Termination "Iuckyducky won on time"]

1. e4 {[%clk 0:02:56.2]} 1... g6 {[%clk 0:03:00.1]} 2. d4 {[%clk 0:02:56.2]}
2... Bg7 {[%clk 0:03:00.7]} 3. Nc3 {[%clk 0:02:56.9]} 3... c6 {[%clk 0:03:01.2]}
4. Nf3 {[%clk 0:02:56.4]} 4... d5 {[%clk 0:03:01.6]} 5. e5 {[%clk 0:02:55.5]}
5... f6 {[%clk 0:03:01.4]} 6. Bd3 {[%clk 0:02:52]} 6... Bg4 {[%clk 0:02:58.5]}
7. Bf4 {[%clk 0:02:50.1]} 7... fxe5 {[%clk 0:02:52.3]} 8. dxe5 {[%clk
0:02:47.6]} 8... Nh6 {[%clk 0:02:43.6]} 9. h3 {[%clk 0:02:40.8]} 9... Bxf3
{[%clk 0:02:43.1]} 10. Qxf3 {[%clk 0:02:41.7]} 10... O-O {[%clk 0:02:42.3]} 11.
Qg3 {[%clk 0:02:30]} 11... Nf5 {[%clk 0:02:36.9]} 12. Qg4 {[%clk 0:02:14.4]}
12... Nd7 {[%clk 0:02:18.1]} 13. O-O-O {[%clk 0:01:44.2]} 13... Nxe5 {[%clk
0:02:13.5]} 14. Bxe5 {[%clk 0:01:44.1]} 14... Bxe5 {[%clk 0:02:13.7]} 15. h4
{[%clk 0:01:44.8]} 15... Nh6 {[%clk 0:01:51.5]} 16. Qe6+ {[%clk 0:01:30.7]}
16... Nf7 {[%clk 0:01:37.9]} 17. h5 {[%clk 0:01:30.7]} 17... Qd6 {[%clk
0:01:34.7]} 18. Qxd6 {[%clk 0:00:57.9]} 18... Nxd6 {[%clk 0:01:30.1]} 19. hxg6
{[%clk 0:00:58.5]} 19... hxg6 {[%clk 0:01:28.1]} 20. f3 {[%clk 0:00:51.2]} 20...
Kg7 {[%clk 0:01:09.1]} 21. Rde1 {[%clk 0:00:46.3]} 21... Kf6 {[%clk 0:01:03]}
22. Ne2 {[%clk 0:00:34.3]} 22... Nf5 {[%clk 0:00:55]} 23. g4 {[%clk 0:00:12.1]}
23... Ng3 {[%clk 0:00:47]} 24. Nxg3 {[%clk 0:00:12.4]} 24... Bxg3 {[%clk
0:00:47.2]} 25. Re2 {[%clk 0:00:12]} 25... Rh8 {[%clk 0:00:42.5]} 26. Rg1 {[%clk
0:00:12.5]} 26... Bf4+ {[%clk 0:00:42.4]} 27. Kd1 {[%clk 0:00:12.7]} 27... g5
{[%clk 0:00:30.9]} 28. c3 {[%clk 0:00:12.5]} 28... e5 {[%clk 0:00:30.3]} 29. Bf5
{[%clk 0:00:12.8]} 29... Rh3 {[%clk 0:00:27.2]} 30. Rf1 {[%clk 0:00:11.3]} 30...
Rah8 {[%clk 0:00:25.1]} 31. Kc2 {[%clk 0:00:11.4]} 31... Rh1 {[%clk 0:00:20.5]}
32. Rff2 {[%clk 0:00:11.9]} 32... Rg1 {[%clk 0:00:19]} 33. Rg2 {[%clk
0:00:11.4]} 33... Rf1 {[%clk 0:00:16.8]} 34. Rgf2 {[%clk 0:00:11.8]} 34... Rhh1
{[%clk 0:00:17.1]} 35. Bc8 {[%clk 0:00:09.1]} 35... Rxf2 {[%clk 0:00:12.5]} 36.
Rxf2 {[%clk 0:00:09.5]} 36... e4 {[%clk 0:00:12.5]} 37. fxe4 {[%clk 0:00:09.6]}
37... dxe4 {[%clk 0:00:12.7]} 38. Bxb7 {[%clk 0:00:10.2]} 38... e3 {[%clk
0:00:13.4]} 39. Re2 {[%clk 0:00:10.7]} 39... c5 {[%clk 0:00:13.8]} 40. Bf3
{[%clk 0:00:10.6]} 40... Rf1 {[%clk 0:00:11.6]} 41. Be4 {[%clk 0:00:11.1]} 41...
Ke5 {[%clk 0:00:10.8]} 42. Bf5 {[%clk 0:00:11.4]} 42... Rf2 {[%clk 0:00:09.2]}
43. Kd3 {[%clk 0:00:10.8]} 43... Rf1 {[%clk 0:00:08.3]} 44. c4 {[%clk
0:00:10.5]} 44... Rd1+ {[%clk 0:00:07.6]} 45. Kc2 {[%clk 0:00:10.2]} 45... Rd4
{[%clk 0:00:07.1]} 46. b3 {[%clk 0:00:10]} 46... Rd8 {[%clk 0:00:06.9]} 47. a3
{[%clk 0:00:07.4]} 47... a5 {[%clk 0:00:07.2]} 48. a4 {[%clk 0:00:07.9]} 48...
Rh8 {[%clk 0:00:06.6]} 49. Kc3 {[%clk 0:00:08.2]} 49... Rh1 {[%clk 0:00:06.3]}
50. Kd3 {[%clk 0:00:08.4]} 50... Rb1 {[%clk 0:00:05.6]} 51. Kc3 {[%clk
0:00:08.6]} 51... Ra1 {[%clk 0:00:05.2]} 52. Kb2 {[%clk 0:00:07.3]} 52... Rf1
{[%clk 0:00:03.9]} 53. Kc3 {[%clk 0:00:07.5]} 53... Rg1 {[%clk 0:00:04]} 54. Kd3
{[%clk 0:00:07.3]} 54... Rg2 {[%clk 0:00:03.7]} 55. Rxg2 {[%clk 0:00:06.9]}
55... Kd6 {[%clk 0:00:02.5]} 56. Re2 {[%clk 0:00:07.3]} 56... Ke5 {[%clk
0:00:02.9]} 57. Rxe3+ {[%clk 0:00:07.4]} 57... Bxe3 {[%clk 0:00:03.4]} 58. Kxe3
{[%clk 0:00:08.3]} 1-0

[Event "Early-Titled-Tuesday-Blitz-February-13-2024"]
[Site "Chess.com"]
[Date "2024.02.13"]
[Round "6"]
[White "David_George21"]
[Black "noblerone"]
[Result "0-1"]
[WhiteElo "2245"]
[BlackElo "2490"]
[TimeControl "180+1"]
[EndTime "9:10:58 PST"]
[Termination "noblerone won by checkmate"]

1. e4 {[%clk 0:03:00.9]} 1... c5 {[%clk 0:02:57.6]} 2. Nf3 {[%clk 0:03:00.4]}
2... e6 {[%clk 0:02:52.9]} 3. d4 {[%clk 0:02:59.6]} 3... cxd4 {[%clk 0:02:53.8]}
4. Nxd4 {[%clk 0:03:00]} 4... Qb6 {[%clk 0:02:53.6]} 5. c4 {[%clk 0:02:56.3]}
5... Bc5 {[%clk 0:02:51.6]} 6. Be3 {[%clk 0:02:33.1]} 6... Nc6 {[%clk
0:02:47.6]} 7. Nc2 {[%clk 0:02:17.4]} 7... Bxe3 {[%clk 0:02:39.4]} 8. Nxe3
{[%clk 0:02:18.3]} 8... Qxb2 {[%clk 0:02:38.5]} 9. Nd2 {[%clk 0:02:18.2]} 9...
Nf6 {[%clk 0:02:27.8]} 10. Be2 {[%clk 0:02:18.1]} 10... Nd4 {[%clk 0:02:23.4]}
11. Bd3 {[%clk 0:02:15.4]} 11... Qc3 {[%clk 0:02:18.7]} 12. Qb1 {[%clk
0:01:53.7]} 12... O-O {[%clk 0:02:01.9]} 13. e5 {[%clk 0:01:50.1]} 13... Nh5
{[%clk 0:01:50.4]} 14. Bxh7+ {[%clk 0:01:04.7]} 14... Kh8 {[%clk 0:01:49.8]} 15.
Nd1 {[%clk 0:01:05.6]} 15... Qa5 {[%clk 0:01:40.4]} 16. Qe4 {[%clk 0:00:59.6]}
16... f5 {[%clk 0:01:22.7]} 17. Qxd4 {[%clk 0:00:49.5]} 17... Kxh7 {[%clk
0:01:18.4]} 18. O-O {[%clk 0:00:45.3]} 18... g5 {[%clk 0:01:11.2]} 19. Ne3
{[%clk 0:00:26.9]} 19... Nf4 {[%clk 0:01:09.4]} 20. Qd6 {[%clk 0:00:23.4]} 20...
Rf7 {[%clk 0:01:02.5]} 21. g3 {[%clk 0:00:19.7]} 21... Ng6 {[%clk 0:00:51.4]}
22. Nf3 {[%clk 0:00:19.1]} 22... Kh6 {[%clk 0:00:45.2]} 23. h4 {[%clk
0:00:18.3]} 23... gxh4 {[%clk 0:00:42.7]} 24. gxh4 {[%clk 0:00:18.5]} 24... Qd8
{[%clk 0:00:38.8]} 25. Ng5 {[%clk 0:00:17.4]} 25... Kg7 {[%clk 0:00:25.3]} 26.
Nxf7 {[%clk 0:00:16.9]} 26... Kxf7 {[%clk 0:00:25.5]} 27. Ng2 {[%clk 0:00:14.3]}
27... b6 {[%clk 0:00:22]} 28. Rad1 {[%clk 0:00:10.9]} 28... Nf8 {[%clk
0:00:19.5]} 29. Qd4 {[%clk 0:00:10.3]} 29... Bb7 {[%clk 0:00:17.8]} 30. Qf4
{[%clk 0:00:10.8]} 30... Qe7 {[%clk 0:00:16.3]} 31. Qg5 {[%clk 0:00:10.9]} 31...
Rc8 {[%clk 0:00:12.7]} 32. Qxe7+ {[%clk 0:00:10.9]} 32... Kxe7 {[%clk
0:00:13.6]} 33. Rd4 {[%clk 0:00:11]} 33... Ng6 {[%clk 0:00:11.4]} 34. h5 {[%clk
0:00:10.9]} 34... Nxe5 {[%clk 0:00:11.1]} 35. f4 {[%clk 0:00:09.3]} 35... Nf3+
{[%clk 0:00:11.3]} 36. Rxf3 {[%clk 0:00:09.9]} 36... Bxf3 {[%clk 0:00:12.1]} 37.
Ne3 {[%clk 0:00:10.1]} 37... Rh8 {[%clk 0:00:11]} 38. Kf2 {[%clk 0:00:09.7]}
38... Bxh5 {[%clk 0:00:10.4]} 39. c5 {[%clk 0:00:10.3]} 39... Be8 {[%clk
0:00:10.2]} 40. cxb6 {[%clk 0:00:10]} 40... axb6 {[%clk 0:00:11.1]} 41. Rb4
{[%clk 0:00:10.3]} 41... Rh2+ {[%clk 0:00:11.1]} 42. Ng2 {[%clk 0:00:09.7]}
42... Rh3 {[%clk 0:00:07.3]} 43. Rxb6 {[%clk 0:00:09]} 43... Ra3 {[%clk
0:00:07.9]} 44. Rb2 {[%clk 0:00:08.8]} 44... d6 {[%clk 0:00:08.3]} 45. Ne3
{[%clk 0:00:08.9]} 45... Bc6 {[%clk 0:00:08.4]} 46. Nc4 {[%clk 0:00:08.7]} 46...
Rc3 {[%clk 0:00:07.7]} 47. Na5 {[%clk 0:00:08.1]} 47... Bd5 {[%clk 0:00:06.9]}
48. Rb5 {[%clk 0:00:07.4]} 48... Ra3 {[%clk 0:00:06.8]} 49. Rb6 {[%clk
0:00:06.9]} 49... Rxa5 {[%clk 0:00:06.3]} 50. Ke3 {[%clk 0:00:07.3]} 50... Ra3+
{[%clk 0:00:06]} 51. Kd4 {[%clk 0:00:07.6]} 51... Ra4+ {[%clk 0:00:06.5]} 52.
Kc3 {[%clk 0:00:07.9]} 52... Rxa2 {[%clk 0:00:07.4]} 53. Kb4 {[%clk 0:00:08.3]}
53... Rb2+ {[%clk 0:00:07.4]} 54. Ka5 {[%clk 0:00:09.2]} 54... Rxb6 {[%clk
0:00:07.6]} 55. Kxb6 {[%clk 0:00:10.1]} 55... e5 {[%clk 0:00:08]} 56. Kc7 {[%clk
0:00:11]} 56... exf4 {[%clk 0:00:08.2]} 57. Kb6 {[%clk 0:00:10.8]} 57... f3
{[%clk 0:00:09.1]} 58. Kb5 {[%clk 0:00:11.7]} 58... f2 {[%clk 0:00:09.7]} 59.
Kb4 {[%clk 0:00:12.6]} 59... f1=Q {[%clk 0:00:09.8]} 60. Ka5 {[%clk 0:00:13.1]}
60... Qb1 {[%clk 0:00:09.5]} 61. Ka6 {[%clk 0:00:13.4]} 61... Bc6 {[%clk
0:00:09.7]} 62. Ka7 {[%clk 0:00:14.3]} 62... Qb7# {[%clk 0:00:09.8]} 0-1

[Event "Early-Titled-Tuesday-Blitz-February-13-2024"]
[Site "Chess.com"]
[Date "2024.02.13"]
[Round "6"]
[White "Azerichess"]
[Black "starworld123"]
[Result "0-1"]
[WhiteElo "3048"]
[BlackElo "2849"]
[TimeControl "180+1"]
[EndTime "9:10:59 PST"]
[Termination "starworld123 won on time"]

1. d4 {[%clk 0:03:00.9]} 1... Nf6 {[%clk 0:02:49.9]} 2. Bg5 {[%clk 0:03:00.2]}
2... e6 {[%clk 0:02:46.8]} 3. e4 {[%clk 0:02:59]} 3... h6 {[%clk 0:02:46.9]} 4.
Bxf6 {[%clk 0:02:59.3]} 4... Qxf6 {[%clk 0:02:47.8]} 5. Nc3 {[%clk 0:03:00]}
5... Bb4 {[%clk 0:02:42.3]} 6. Qd3 {[%clk 0:02:59.7]} 6... c5 {[%clk 0:02:34.4]}
7. e5 {[%clk 0:02:53.2]} 7... Qg6 {[%clk 0:02:16.7]} 8. Qxg6 {[%clk 0:02:48]}
8... fxg6 {[%clk 0:02:17.6]} 9. dxc5 {[%clk 0:02:42.8]} 9... Nc6 {[%clk
0:02:14.8]} 10. Nf3 {[%clk 0:02:37.7]} 10... g5 {[%clk 0:02:14.7]} 11. h3 {[%clk
0:02:38.2]} 11... Bxc5 {[%clk 0:01:36.4]} 12. Ne4 {[%clk 0:02:34.4]} 12... Be7
{[%clk 0:01:37.1]} 13. O-O-O {[%clk 0:02:31]} 13... Rf8 {[%clk 0:01:32]} 14. Bb5
{[%clk 0:02:20.5]} 14... Rxf3 {[%clk 0:00:50.1]} 15. gxf3 {[%clk 0:02:17.1]}
15... Nxe5 {[%clk 0:00:51]} 16. Rhe1 {[%clk 0:01:45.3]} 16... Nxf3 {[%clk
0:00:47.1]} 17. Re3 {[%clk 0:01:45.9]} 17... Nh4 {[%clk 0:00:41.6]} 18. Red3
{[%clk 0:01:36.3]} 18... Nf5 {[%clk 0:00:35.9]} 19. Bxd7+ {[%clk 0:01:33.6]}
19... Kf7 {[%clk 0:00:30.3]} 20. Rc3 {[%clk 0:01:26.1]} 20... Bxd7 {[%clk
0:00:26.3]} 21. Rxd7 {[%clk 0:01:27]} 21... b6 {[%clk 0:00:19.9]} 22. Ng3 {[%clk
0:01:20.3]} 22... Kf6 {[%clk 0:00:13.8]} 23. Nxf5 {[%clk 0:01:14.1]} 23... exf5
{[%clk 0:00:14.7]} 24. Rc6+ {[%clk 0:01:13.8]} 24... Kf7 {[%clk 0:00:15.4]} 25.
Rcc7 {[%clk 0:01:14]} 25... Re8 {[%clk 0:00:16.3]} 26. Rxa7 {[%clk 0:01:14.6]}
26... Kf6 {[%clk 0:00:15.2]} 27. c3 {[%clk 0:01:02.8]} 27... Bc5 {[%clk
0:00:13.8]} 28. Rf7+ {[%clk 0:01:03.3]} 28... Ke5 {[%clk 0:00:13.5]} 29. Rxg7
{[%clk 0:00:55.6]} 29... Bxf2 {[%clk 0:00:13.2]} 30. Rge7+ {[%clk 0:00:52.3]}
30... Rxe7 {[%clk 0:00:13.4]} 31. Rxe7+ {[%clk 0:00:53.2]} 31... Kf6 {[%clk
0:00:13]} 32. Re8 {[%clk 0:00:49.1]} 32... f4 {[%clk 0:00:12.1]} 33. Kd2 {[%clk
0:00:49.5]} 33... h5 {[%clk 0:00:11.5]} 34. Ke2 {[%clk 0:00:49.8]} 34... Bc5
{[%clk 0:00:08]} 35. b4 {[%clk 0:00:50.1]} 35... Bd6 {[%clk 0:00:07.7]} 36. Kf3
{[%clk 0:00:41.8]} 36... Kf5 {[%clk 0:00:07.6]} 37. Rg8 {[%clk 0:00:41.6]} 37...
b5 {[%clk 0:00:07.1]} 38. a3 {[%clk 0:00:19]} 38... Be7 {[%clk 0:00:04.9]} 39.
Rh8 {[%clk 0:00:14.3]} 39... g4+ {[%clk 0:00:04.6]} 40. Kf2 {[%clk 0:00:14.6]}
40... Bh4+ {[%clk 0:00:03.6]} 41. Kf1 {[%clk 0:00:13.2]} 41... Kg5 {[%clk
0:00:03.7]} 42. Rg8+ {[%clk 0:00:12.1]} 42... Kf5 {[%clk 0:00:04.2]} 43. Rh8
{[%clk 0:00:12.5]} 43... Kg5 {[%clk 0:00:04.9]} 44. Rb8 {[%clk 0:00:11.5]} 44...
f3 {[%clk 0:00:05.2]} 45. Rxb5+ {[%clk 0:00:11.9]} 45... Kg6 {[%clk 0:00:04.5]}
46. Rb6+ {[%clk 0:00:06.7]} 46... Kg5 {[%clk 0:00:04]} 47. hxg4 {[%clk
0:00:04.2]} 47... hxg4 {[%clk 0:00:04.9]} 48. Rb8 {[%clk 0:00:03]} 48... g3
{[%clk 0:00:05.4]} 49. Rg8+ {[%clk 0:00:02.9]} 49... Kf4 {[%clk 0:00:06.1]} 50.
a4 {[%clk 0:00:03.2]} 50... Bg5 {[%clk 0:00:06.7]} 51. a5 {[%clk 0:00:02.2]}
51... g2+ {[%clk 0:00:07.2]} 52. Kg1 {[%clk 0:00:01.7]} 52... Kf5 {[%clk
0:00:06.1]} 0-1

[Event "Early-Titled-Tuesday-Blitz-February-13-2024"]
[Site "Chess.com"]
[Date "2024.02.13"]
[Round "6"]
[White "bazar-wokzal"]
[Black "mbojan"]
[Result "0-1"]
[WhiteElo "2668"]
[BlackElo "2870"]
[TimeControl "180+1"]
[EndTime "9:10:59 PST"]
[Termination "mbojan won on time"]

1. e4 {[%clk 0:03:00.9]} 1... g6 {[%clk 0:02:59.8]} 2. Nc3 {[%clk 0:02:57.7]}
2... Nf6 {[%clk 0:02:59.9]} 3. e5 {[%clk 0:02:57.4]} 3... Nh5 {[%clk 0:03:00.1]}
4. d4 {[%clk 0:02:54]} 4... d6 {[%clk 0:02:59.9]} 5. g4 {[%clk 0:02:47.6]} 5...
Ng7 {[%clk 0:02:59.6]} 6. Bf4 {[%clk 0:02:46.6]} 6... h5 {[%clk 0:02:57.5]} 7.
f3 {[%clk 0:02:41.7]} 7... Nc6 {[%clk 0:02:50.3]} 8. Bb5 {[%clk 0:02:39.6]} 8...
Bd7 {[%clk 0:02:48.6]} 9. Qd2 {[%clk 0:02:34.4]} 9... a6 {[%clk 0:02:33]} 10.
Bxc6 {[%clk 0:02:31.7]} 10... bxc6 {[%clk 0:02:24.6]} 11. O-O-O {[%clk 0:02:24]}
11... hxg4 {[%clk 0:02:24]} 12. fxg4 {[%clk 0:02:23.9]} 12... Bxg4 {[%clk
0:02:24]} 13. Nge2 {[%clk 0:02:23.1]} 13... Ne6 {[%clk 0:02:05.5]} 14. Kb1
{[%clk 0:02:16.4]} 14... Qd7 {[%clk 0:01:49]} 15. Rhg1 {[%clk 0:02:14.6]} 15...
Nxf4 {[%clk 0:01:45.7]} 16. Qxf4 {[%clk 0:02:13.7]} 16... Bxe2 {[%clk
0:01:44.3]} 17. Nxe2 {[%clk 0:02:13.2]} 17... Qf5 {[%clk 0:01:44.4]} 18. Qe3
{[%clk 0:02:01.3]} 18... Rxh2 {[%clk 0:01:17.2]} 19. Rdf1 {[%clk 0:01:56.1]}
19... Qe6 {[%clk 0:01:17.3]} 20. Nf4 {[%clk 0:01:43.1]} 20... Qc4 {[%clk
0:01:16.6]} 21. Rc1 {[%clk 0:01:09.8]} 21... Bh6 {[%clk 0:01:10.3]} 22. b3
{[%clk 0:01:04.4]} 22... Qb4 {[%clk 0:00:29.8]} 23. e6 {[%clk 0:01:01.4]} 23...
fxe6 {[%clk 0:00:16.1]} 24. Qxe6 {[%clk 0:00:51]} 24... Bxf4 {[%clk 0:00:13.1]}
25. Qxg6+ {[%clk 0:00:46.8]} 25... Kd8 {[%clk 0:00:06]} 26. Qg8+ {[%clk
0:00:40.7]} 26... Kd7 {[%clk 0:00:06.5]} 27. Qg4+ {[%clk 0:00:40.6]} 27... e6
{[%clk 0:00:06.6]} 28. Qxf4 {[%clk 0:00:41]} 28... Rh7 {[%clk 0:00:06.4]} 29.
Qf6 {[%clk 0:00:28.3]} 29... Re8 {[%clk 0:00:05.7]} 30. Rcf1 {[%clk 0:00:20.7]}
30... Rhe7 {[%clk 0:00:06.1]} 31. Rg7 {[%clk 0:00:18.9]} 31... Qc3 {[%clk
0:00:06]} 32. Rxe7+ {[%clk 0:00:16.1]} 32... Rxe7 {[%clk 0:00:06.9]} 33. Rf3
{[%clk 0:00:15.5]} 33... Qe1+ {[%clk 0:00:06.2]} 34. Kb2 {[%clk 0:00:16.2]}
34... Qe4 {[%clk 0:00:07]} 35. Rc3 {[%clk 0:00:15.1]} 35... Qd5 {[%clk
0:00:06.7]} 36. Qh8 {[%clk 0:00:14.6]} 36... e5 {[%clk 0:00:06.4]} 37. dxe5
{[%clk 0:00:11.8]} 37... Qxe5 {[%clk 0:00:07.3]} 38. Qh3+ {[%clk 0:00:11.6]}
38... Qe6 {[%clk 0:00:07.4]} 39. Qd3 {[%clk 0:00:10.7]} 39... a5 {[%clk
0:00:06.6]} 40. a4 {[%clk 0:00:10.5]} 40... Qd5 {[%clk 0:00:07.1]} 41. Qa6
{[%clk 0:00:09.8]} 41... Rf7 {[%clk 0:00:05.3]} 42. Kb1 {[%clk 0:00:09]} 42...
Rg7 {[%clk 0:00:03.9]} 43. Rd3 {[%clk 0:00:08.7]} 43... Rg1+ {[%clk 0:00:03.9]}
44. Kb2 {[%clk 0:00:04.5]} 44... Qe5+ {[%clk 0:00:04.3]} 45. Rc3 {[%clk
0:00:04.2]} 45... Rg3 {[%clk 0:00:03.7]} 46. Qc4 {[%clk 0:00:03.4]} 46... Rxc3
{[%clk 0:00:03.5]} 47. Qxc3 {[%clk 0:00:04]} 47... Qxc3+ {[%clk 0:00:04.4]} 48.
Kxc3 {[%clk 0:00:04.8]} 48... Ke6 {[%clk 0:00:05.3]} 49. b4 {[%clk 0:00:04.9]}
49... axb4+ {[%clk 0:00:05.3]} 50. Kxb4 {[%clk 0:00:05.4]} 50... Kd7 {[%clk
0:00:06.2]} 51. Ka5 {[%clk 0:00:03.8]} 51... Kc8 {[%clk 0:00:06.6]} 52. Ka6
{[%clk 0:00:04.2]} 52... Kb8 {[%clk 0:00:07.1]} 53. c4 {[%clk 0:00:01.7]} 53...
Ka8 {[%clk 0:00:07.6]} 0-1